Cogmind - Beta 17 @@@ ROGUE MODE // 2026.08.09 @ 17:28:04 Player: Blank Result: Destroyed by IX-RMP(R) with Subdweller Laser Performance ------------- Evolutions (0) 0 Regions Visited (2) 400 Robots Destroyed (6) 30 Value Destroyed (36) 36 Prototype IDs (0) 0 Alien Tech Used (0) 0 Bonus (0) 0 TOTAL SCORE: 466 Bonus ------- None Cogmind --------- Core Integrity 0/250 Matter 298/300 Energy 199/200 System Corruption 0% Temperature Cool (6) Movement Rolling (80) Location -10/Subcaves Parts ------- > --- POWER (1) -------- Subdweller Power Source > --- PROPULSION (2) --- Wheel > --- UTILITY (2) ------ Small Storage Unit > --- WEAPON (2) ------- (None) > --- INVENTORY (8) ---- Ion Engine Subdweller Power Source Light Treads Aluminum Leg EM Pulse Gun Subdweller Machine Gun Peak State ------------ > --- POWER ------------ Ion Engine > --- PROPULSION ------- Aluminum Leg Aluminum Leg > --- UTILITY ---------- Small Storage Unit Improved Terrain Scanner > --- WEAPON ----------- Small Laser Small Laser > --- INVENTORY -------- Ion Engine Subdweller Power Source Light Treads Light Treads Wheel Compact Wheel EM Pulse Gun Scrap Shield Fragment [Rating: 10] Favorites ----------- Power Ion Engine Engine Ion Engine Propulsion Aluminum Leg Leg Aluminum Leg Wheel Wheel Utility Small Storage Unit Device Improved Terrain Scanner Storage Small Storage Unit Weapon Small Laser Energy Gun Small Laser Build | -11 -10 -10 ------- Run | Yrd Mat Sub Slots Evolved . | . . . Power . | . . . Propulsion . | . . . Utility . | . . . Weapon . | . . . Parts Attached 13 | 8 . 5 Power 2 | 1 . 1 Engine 2 | 1 . 1 Core . | . . . Reactor . | . . . Propulsion 4 | 2 . 2 Treads . | . . . Leg 2 | 2 . . Wheel 2 | . . 2 Hover . | . . . Flight . | . . . Utility 4 | 2 . 2 Device 3 | 1 . 2 Storage 1 | 1 . . Processor . | . . . Hackware . | . . . Protection . | . . . Artifact . | . . . Weapon 3 | 3 . . Energy Gun 3 | 3 . . Energy Cannon . | . . . Ballistic Gun . | . . . Ballistic Cannon . | . . . Launcher . | . . . Special Weapon . | . . . Impact Weapon . | . . . Slashing Weapon . | . . . Piercing Weapon . | . . . Special Melee Weapon . | . . . Unidentified Prototypes . | . . . Parts Lost 9 | . . 9 Power 1 | . . 1 Propulsion 3 | . . 3 Utility 3 | . . 3 Weapon 2 | . . 2 Highest Loss Streak 8 | . . 8 To Critical Strikes . | . . . Average Backups 6 | 5 6 6 Power 1 | . 1 1 Propulsion 3 | 2 4 3 Utility . | . . . Weapon 1 | . 1 1 Tool/Special . | . . . Unused Backups 6 | . . 6 Power 2 | . . 2 Propulsion 3 | . . 3 Utility . | . . . Weapon 1 | . . 1 Tool/Special . | . . . Average Slot Usage (%) 89 | . 100 88 Engine 13 | . 14 13 Leg 23 | . 28 23 Device 12 | . 14 12 Storage 14 | . 14 14 Energy Gun 23 | . 28 22 Peak Build Rating 10 | 9 9 10 Average Rating 7 | 5 9 8 On Entrance 6 | . 9 9 Avg Prop Armor Cover (%) . | . . . Naked Turns . | . . . Heaviest Build 13 | 13 13 13 Greatest Support 26 | 20 20 26 Greatest Overweight (x) 4 | 4 . 3 Average Overweight (x) . | . . . Largest Inventory Capacity 8 | 8 8 8 Average Capacity 7 | 7 8 8 Most Carried 8 | 7 6 8 Average Carried 6 | 5 6 6 Final Capacity 8 | 8 8 8 Final Carried 6 | 6 6 6 Class Distribution -------------------- 100% | Mutant Dominant Class ---------------- Mutant | -10/Materials Mutant | -10/Subcaves Resources | -11 -10 -10 ----------- Run | Yrd Mat Sub Matter Collected 313 | 270 . 43 Remotely . | . . . Salvage Created 88 | 88 . . Parts 13 | 13 . . Haulers Intercepted . | . . . Recyclers Shooed . | . . . Parts Field Recycled . | . . . Retrieved Matter . | . . . Parts Self-Destructed 11 | . . 11 Prevented . | . . . Parts Restored . | . . . Kills | -11 -10 -10 ------- Run | Yrd Mat Sub Combat Hostiles Destroyed . | . . . Classes Destroyed 2 | 2 . . Worker 1 | 1 . . Tunneler 5 | 5 . . Best Kill Streak 3 | 3 . . Combat Bots Only . | . . . Max Kills in Single Turn 1 | 1 . . Gunslinging . | . . . Exploded . | . . . Melee . | . . . Uniques/NPCs Destroyed . | . . . Combat | -11 -10 -10 -------- Run | Yrd Mat Sub Hostile Shots Fired 70 | . . 70 Missed 23 | . . 23 Hits 47 | . . 47 Projectile 47 | . . 47 Damage Taken 940 | . . 940 Core 260 | . . 260 Absorbed by Shields . | . . . Core Remaining (%) 100 | 100 . . Volleys Fired 15 | 12 . 3 Largest 2 | 2 . 2 Hottest 80 | 80 . 80 Shots Fired 30 | 24 . 6 Gun 30 | 24 . 6 Cannon . | . . . Launcher . | . . . Special . | . . . Kinetic . | . . . Thermal 30 | 24 . 6 Explosive . | . . . Electromagnetic . | . . . Robot Hit Streak 6 | 4 . 6 Robot Miss Streak 3 | 3 . 2 Penetration Max . | . . . Secondary Targets . | . . . Shots Hit Robots 15 | 11 . 4 Core Hits 6 | 6 . . Critical Kills . | . . . Critical Parts Destroyed . | . . . Critical Strikes . | . . . Melee Attacks . | . . . Impact . | . . . Slashing . | . . . Piercing . | . . . Sneak Attacks . | . . . Combat Hostiles . | . . . Follow-up Attacks . | . . . Damage Inflicted 178 | 124 . 54 Guns 178 | 124 . 54 Cannons . | . . . Explosions . | . . . Melee . | . . . Ramming . | . . . Kinetic . | . . . Thermal 178 | 124 . 54 Explosive . | . . . Electromagnetic . | . . . Impact . | . . . Slashing . | . . . Piercing . | . . . Highest Corruption . | . . . Average Corruption . | . . . Corruption Purged . | . . . Corruption Blocked . | . . . Overload Shots . | . . . Overflow Damage . | . . . Projectiles . | . . . Explosions . | . . . Melee . | . . . Knockbacks . | . . . Impact . | . . . Kinetic . | . . . Secondary . | . . . Self-Inflicted Damage . | . . . Shots . | . . . Rammed . | . . . Targets Rammed . | . . . Kicked . | . . . Crushed . | . . . Highest Temperature 72 | 72 . . Average Temperature 34 | 34 . . Received Heat Transfer 162 | . . 162 Siege Activations . | . . . Martial Activations . | . . . Shielding Activations . | . . . Robots Disrupted . | . . . Combat Hostiles . | . . . Robots Corrupted . | . . . Combat Hostiles . | . . . Parts Fried . | . . . Impact Corruptions . | . . . Robots Melted . | . . . Combat Hostiles . | . . . Parts Melted . | . . . Heat Transferred 400 | 275 . 125 Parts Sabotaged . | . . . Parts Stolen . | . . . Parts Stripped . | . . . Power Chain Reactions . | . . . Alert | -11 -10 -10 ------- Run | Yrd Mat Sub Maximum Alert Level . | . . . Low Security (%) 100 | 100 100 . Level 1 . | . . . Level 2 . | . . . Level 3 . | . . . Level 4 . | . . . Level 5 . | . . . High Security . | . . . Max Security . | . . . Peak Influence 15 | 15 3 . Initial 3 | . 3 . Average 2 | 2 2 . Influence Increases 60 | 30 . 30 Destroy 0b10 Robot/NC 30 | 30 . . Lose Combat Pursuer 30 | . . 30 Influence Decreases 60 | 25 5 30 Entered New Map 2 | . 2 . Time Decay 48 | 25 3 20 Lost Part 10 | . . 10 Squads Dispatched . | . . . Investigation . | . . . Extermination . | . . . Reinforcement . | . . . Assault . | . . . Garrison . | . . . Intercept . | . . . Searches Triggered . | . . . Construction Impeded . | . . . Haulers Reinforced . | . . . Active Scanning Responses . | . . . Cargo Convoy Interrupts . | . . . Stealth | -11 -10 -10 --------- Run | Yrd Mat Sub Distress Signals . | . . . Communications Jammed . | . . . Distress Signals . | . . . Times Spotted 13 | . . 13 Peak Tracking Total 9 | . . 9 Tactical Retreats 1 | . . 1 Traps | -11 -10 -10 ------- Run | Yrd Mat Sub Traps Triggered . | . . . Indirectly . | . . . Trap Hack Attempts . | . . . Triggered . | . . . Disarmed . | . . . Reprogrammed . | . . . Reused . | . . . Traps Extracted . | . . . Installed . | . . . Triggered . | . . . Machines | -11 -10 -10 ---------- Run | Yrd Mat Sub Machines Disabled . | . . . Max in Single Turn . | . . . Machines Repaired . | . . . Machines Dismantled . | . . . Machines Sabotaged . | . . . Overloaded Fab Kills . | . . . Hacking | -11 -10 -10 --------- Run | Yrd Mat Sub Machines Accessed . | . . . Terminals . | . . . Fabricators . | . . . Repair Stations . | . . . Recycling Units . | . . . Scanalyzers . | . . . Garrison Access . | . . . Total Hacks . | . . . Successful . | . . . Failed . | . . . Catastrophic . | . . . Database Lockouts . | . . . Manual . | . . . Terminals . | . . . Fabricators . | . . . Repair Stations . | . . . Recycling Units . | . . . Scanalyzers . | . . . Garrison Access . | . . . Terminal Hacks . | . . . Fabricator Hacks . | . . . Repair Station Hacks . | . . . Recycling Unit Hacks . | . . . Scanalyzer . | . . . Garrison Access Hacks . | . . . Unauthorized Hacks . | . . . Terminals . | . . . Fabricators . | . . . Repair Stations . | . . . Recycling Units . | . . . Scanalyzers . | . . . Garrison Access . | . . . Data Cores Recovered . | . . . Used . | . . . Hacking Detections . | . . . Full Trace Events . | . . . Feedback Events . | . . . Feedback Blocked . | . . . Robot Schematics Acquired . | . . . Robots Built . | . . . Authchips . | . . . Time . | . . . Total Robot Build Rating . | . . . Part Schematics Acquired . | . . . Parts Built . | . . . Authchips . | . . . Time . | . . . Total Part Build Rating . | . . . Part Studies Acquired . | . . . Parts Repaired . | . . . Time . | . . . Parts Recycled . | . . . Recycled Matter . | . . . Retrieved Matter . | . . . Retrieved Components . | . . . Parts Scanalyzed . | . . . Part Schematics Acquired . | . . . Parts Damaged . | . . . Bothacking | -11 -10 -10 ------------ Run | Yrd Mat Sub Used RIF Installer . | . . . Robots Hacked . | . . . Non-combat . | . . . Combat . | . . . Robot Hacks Applied . | . . . Relay Couplers Released . | . . . Fabnet Peak Effective % . | . . . Robots Rewired . | . . . Allies Hacked . | . . . Hacks Repelled . | . . . Allies | -11 -10 -10 -------- Run | Yrd Mat Sub Total Allies . | . . . Largest Group . | . . . Highest-Rated Group . | . . . Highest-Rated Ally . | . . . Total Orders . | . . . Ally Attacks . | . . . Total Damage . | . . . Kills . | . . . Allies Corrupted . | . . . Allies Melted . | . . . Intel | -11 -10 -10 ------- Run | Yrd Mat Sub Active Infowar (turns) 204 | 1 23 180 Terrain 204 | 1 23 180 Robot Analysis Total . | . . . Derelict Logs Recovered . | . . . Drone Launches . | . . . Drone Recoveries . | . . . Exploration | -11 -10 -10 ------------- Run | Yrd Mat Sub Turns Passed 484 | 158 23 303 Spaces Moved 300 | 80 11 209 Core 19 | 11 . 8 Treads . | . . . Legs 270 | 69 11 190 Wheels 11 | . . 11 Hover . | . . . Flight . | . . . Fastest Speed 50 | 50 120 80 Average Speed 127 | 126 120 128 Slowest Speed 250 | 250 120 200 Overloaded Moves . | . . . Propulsion Burnouts . | . . . Robots Hopped . | . . . Potential Cave-ins . | . . . Cave-ins Triggered . | . . . Exploration Rate (%) 9 | 4 3 21 Regions Visited 2 Branch Regions 1 Pre-discovered Areas . | . . . Known Exits Taken . | . . . Unknown Exits Taken 2 | 1 1 . Scrap Searched . | . . . Spaces Dug . | . . . Terrain Destroyed . | . . . Melee . | . . . Projectile . | . . . AOE . | . . . Terrain Rammed . | . . . Walls Destroyed . | . . . Machines Disabled . | . . . Actions | -11 -10 -10 --------- Run | Yrd Mat Sub Total 367 | 109 21 237 Wait 27 | 3 11 13 Move 298 | 79 10 209 Hop . | . . . Pick Up 12 | 7 . 5 Fast Attach 8 | 6 . 2 Attach 4 | 1 . 3 Detach . | . . . Swap 1 | 1 . . Drop 2 | . . 2 Fire 15 | 12 . 3 Melee . | . . . Ram . | . . . Kick . | . . . Crush . | . . . Escape Stasis . | . . . Rewire . | . . . Trap . | . . . Miscellaneous . | . . . Route ------- -11/Scrapyard -10/Materials -10/Subcaves (discovered 1 exit: [Scr]) History --------- Turn | Location | Event 20 | -11/Scrapyard | Discovered new exit (range 15) 159 | -11/Scrapyard | Entered Materials 160 | -10/Materials | Met a group of wandering Federalists 179 | -10/Materials | Discovered new exit (range 5) 182 | -10/Materials | Entered Subcaves 182 | -10/Subcaves | Accompanied by 2 allies 183 | -10/Subcaves | Continued accompanying wandering Federalists (3) 183 | -10/Subcaves | Approached by a straggling Scientist 312 | -10/Subcaves | Build established: Mutant 421 | -10/Subcaves | Lost 6 allies 438 | -10/Subcaves | Core integrity fell below 50% 484 | -10/Subcaves | Core integrity fell below 20% 485 | -10/Subcaves | Destroyed by IX-RMP(R) with Subdweller Laser Last Messages --------------- 00377_ 07-FYW(g) destroyed. 00378_ Acquired 10 matter. 00385_ Subatomizers dissect the Disposable Heat Sink. FI-533(c): "I think it's somewhere east of here" 00390_ FI-533(c) destroyed. 00398_ DA-RVV(R): "OHNO!" 00399_ Ion Engine destroyed. 00411_ Sml. Laser destroyed. 00412_ Aluminum Leg destroyed. 00425_ Acquired Sub. Power Source. 00436_ BX-GXD(R) affixes Scrap Shield Fragment to Scrap Shield. 00437_ Sml. Laser destroyed. 00437_ Acquired 5 matter. 00445_ S-10 Pest destroyed. 00456_ Aluminum Leg destroyed. 00468_ Imp. Heat Sink destroyed. 00481_ Com. Wheel destroyed. 00483_ Acquired Mak. Cloaking Device. 00483_ Mak. Cloaking Device destroyed. 00485_ Acquired 18 matter. Map ----- +----------------------------------------------------+ | ## ##%*"#?????#????????????????????????????? | | ######## #####??####??????????###???????????? | | = ##?????## """####=&########### #####???????? | | %! #??????#" ## ""]%& # # ##??????? | | #?????##"# ## "" &! %%= %#???? | | * #?????#"" " ## * ## ?? | | ####???## ######### ##????????????? | | ##???????# # ## ####????# ##???????????? | | ##????????###### ###### ###?????????? | | ##?????????????# # ## ##????????? | | #?????????????# ## #????????? | | ? ???????????# ##### % ##????????? | | ????????????# ###?## ###### ###?????????? | | ### ???????????# #### ##?## ##???????????? | | ??? ??????????# RR ## #???????????? | | ???? ?????????# ##???????????? | | ????? ????????# ### # = % ?????? | | ? ? ? ???????# #???### R # ## ??????? | | ?????? ????????## ????## ######???? ??????? | | ????#???????????# ???## #??????????????????? | | ????????????????? #??## #??????????????????? | | ??????????????????????# ##?????????????????? | | ??????????????????????# #####?????????????? | | ??????????????????????## ## #?????????????? | | ?????????????????## # ## ##?????????????? | | ???????????????# @ ### ##??????????????? | | ?????????? #?#####???????????????? | | ?????????? #?????????????????????? | | ???????????## ##### ####?????????????????????? | | ??????????????????### #?????????????????????????? | | ????????????????????###??????????????????????????? | | ?????????????????????????????????????????????????? | | ?????????????????????????????????????????????????? | | ?????????????????????????????????????????????????? | | ?????????????????????????????????????????????????? | | ?????????????????????????????????????????????????? | | ?????????????????????????????????????????????????? | | ?????????????????????????????????????????????????? | | ?????????????????????????????????????????????????? | | ?????????????????????????????????????????????????? | | ?????????????????????????????????????????????????? | | ?????????????????????????????????????????????????? | | ?????????????????????????????????????????????????? | | ?????????????????????????????????????????????????? | | ?????????????????????????????????????????????????? | | | | | | | | | | | +----------------------------------------------------+ Best States ------------- Heat Dissipation 39 Energy Generation 15 Energy Capacity 250 Matter Stores 300 Matter Capacity 300 Sight Range 16 Terrain Scan Range 16 Terrain Scan Density 10 Evasion (%) 55 Item Schematics ----------------- None Robot Schematics ------------------ None Fabricated ------------ Nothing Repaired ---------- Nothing Studied --------- None Alien Tech Used ----------------- None Achievements -------------- Strength In Numbers Challenges ------------ None Game ------ Seed LatentHelicalWheel Manual? 0 Play Time 00:08:41 Cumulative 14.0 hours Start 2026.08.09 @ 17:22:41 End 2026.08.09 @ 17:28:04 Sessions 1 Manual Loads 0 Difficulty Rogue Special Mode None Game No. 17 Rogue 17 Adventurer 0 Explorer 0 Win Type - Total 0 Types 0/0/0/0/0/0/0/0/0/0 Lore% 12 Gallery% 21 Achievement% 17 Wizard Run 0 Options --------- Layout 1 ASCII 0 Keyboard 1 Movement Numpad Keybinds 0 Fullscreen 1 Font 32/Terminus Map View 77x35 Zoom Use 0% Tactical HUD 1 Map Filters NONE Filters NONE Steam 1 RUN: c65138f5-4a80-4a63-9ad8-cdad1f096631